[Event "GER-ch Blitz 2019"]
[Site "Magdeburg"]
[Date "2019.05.25"]
[Round "26.13"]
[White "Wichmann, Cliff"]
[Black "Ehmann, Thilo"]
[Result "0-1"]
[ECO "A65"]
[WhiteElo "2280"]
[BlackElo "2291"]
[Annotator "NA"]
[PlyCount "118"]
[EventDate "2019.05.25"]
[EventType "tourn"]
[EventCountry "GER"]
[Tiebreak "Number of wins+Number of black wins"]
[SourceTitle "playchess.com"]
[Source "ChessBase"]
[SourceQuality "1"]
[TimeControl "180+2"]

1. d4 {[%emt 0:00:00]} Nf6 {[%emt 0:00:00]} 2. c4 c5 {[%emt 0:00:00]} 3. d5 e6
4. Nc3 {[%emt 0:00:02]} exd5 {[%emt 0:00:00]} 5. cxd5 {[%emt 0:00:01]} d6 {
[%emt 0:00:00]} 6. e4 {[%emt 0:00:01]} g6 {[%emt 0:00:00]} 7. h3 {[%emt 0:00:
02]} Bg7 {[%emt 0:00:01]} 8. Nf3 {[%emt 0:00:01]} O-O {[%emt 0:00:01]} 9. Bd3 {
[%emt 0:00:01]} Nh5 {[%emt 0:00:04]} 10. Bg5 {[%emt 0:00:01]} Bf6 {[%emt 0:00:
05]} 11. Be3 {[%emt 0:00:02]} a6 {[%emt 0:00:03]} 12. a4 {[%emt 0:00:00]} Nd7 {
[%emt 0:00:02]} 13. O-O {[%emt 0:00:02]} Qe7 {[%emt 0:00:12]} 14. Re1 {[%emt 0:
00:01]} b6 {[%emt 0:00:14]} 15. Nd2 {[%emt 0:00:19]} Bg5 {[%emt 0:00:12]} 16.
Nc4 {[%emt 0:00:51]} Bxe3 {[%emt 0:00:11]} 17. Rxe3 {[%emt 0:00:02]} Rb8 {
[%emt 0:00:11]} 18. g3 {[%emt 0:00:39]} Ne5 {[%emt 0:00:21]} 19. Nxe5 {[%emt 0:
00:14]} dxe5 {[%emt 0:00:04]} 20. Be2 {[%emt 0:00:17]} Nf6 21. Qf1 {[%emt 0:00:
14]} Ra8 {[%emt 0:00:06]} 22. Rd1 {[%emt 0:00:05]} Qd6 {[%emt 0:00:01]} 23. f4
{[%emt 0:00:03]} Nd7 {[%emt 0:00:52]} 24. Bg4 {[%emt 0:00:06]} f5 {[%emt 0:00:
18]} 25. exf5 {[%emt 0:00:02]} gxf5 {[%emt 0:00:01]} 26. Bf3 {[%emt 0:00:27]}
e4 {[%emt 0:00:06]} 27. Bg2 {[%emt 0:00:01]} Nf6 {[%emt 0:00:01]} 28. Nb1 {
[%emt 0:00:04]} Bd7 {[%emt 0:00:01]} 29. b3 {[%emt 0:00:02]} b5 {[%emt 0:00:01]
} 30. Nc3 {[%emt 0:00:01]} Rfb8 {[%emt 0:00:03]} 31. Kh2 {[%emt 0:00:02]} Kh8 {
[%emt 0:00:01]} 32. Qe2 {[%emt 0:00:02]} bxa4 {[%emt 0:00:06]} 33. bxa4 {
[%emt 0:00:01]} Rb4 {[%emt 0:00:01]} 34. Qc2 {[%emt 0:00:03]} Rab8 {[%emt 0:00:
01]} 35. Re2 {[%emt 0:00:02]} Rd4 {[%emt 0:00:08]} 36. Red2 {[%emt 0:00:03]}
Rbb4 {[%emt 0:00:01]} 37. Na2 {[%emt 0:00:02]} Rxa4 {[%emt 0:00:01]} 38. Rxd4 {
[%emt 0:00:02]} cxd4 {[%emt 0:00:03]} 39. Nc1 {[%emt 0:00:04]} Qxd5 40. Qc7 {
[%emt 0:00:02]} Kg7 {[%emt 0:00:08]} 41. Ne2 {[%emt 0:00:04]} Rc4 {[%emt 0:00:
01]} 42. Qa7 {[%emt 0:00:01]} d3 {[%emt 0:00:03]} 43. Nc1 {[%emt 0:00:04]} Qc5
{[%emt 0:00:03]} 44. Qxc5 {[%emt 0:00:04]} Rxc5 {[%emt 0:00:00]} 45. Nb3 {
[%emt 0:00:01]} Rc3 {[%emt 0:00:02]} 46. Nd4 {[%emt 0:00:00]} Rc4 {[%emt 0:00:
03]} 47. Nb3 {[%emt 0:00:02]} Ba4 {[%emt 0:00:03]} 48. Nd2 {[%emt 0:00:03]}
Bxd1 {[%emt 0:00:08]} 49. Nxc4 {[%emt 0:00:01]} Bb3 {[%emt 0:00:02]} 50. Ne3 {
[%emt 0:00:02]} Be6 {[%emt 0:00:02]} 51. g4 {[%emt 0:00:01]} fxg4 {[%emt 0:00:
08]} 52. f5 {[%emt 0:00:02]} gxh3 {[%emt 0:00:04]} 53. fxe6 {[%emt 0:00:03]}
hxg2 {[%emt 0:00:02]} 54. Kxg2 a5 55. Kf2 {[%emt 0:00:07]} a4 {[%emt 0:00:03]}
56. Nf5+ {[%emt 0:00:01]} Kf8 {[%emt 0:00:02]} 57. Nd4 {[%emt 0:00:02]} a3 {
[%emt 0:00:01]} 58. Nb3 {[%emt 0:00:04]} h5 {[%emt 0:00:02]} 59. Ke3 {[%emt 0:
00:01]} Ke7 {[%emt 0:00:00]} 0-1

[Event "GER-ch Blitz 2019"]
[Site "Magdeburg"]
[Date "2019.05.25"]
[Round "26.14"]
[White "Braeuer, Franz"]
[Black "Koch, Thomas"]
[Result "0-1"]
[ECO "B90"]
[WhiteElo "2445"]
[BlackElo "2474"]
[Annotator "ChessBase"]
[PlyCount "114"]
[EventDate "2019.05.25"]
[EventType "tourn"]
[EventCountry "GER"]
[Tiebreak "Number of wins+Number of black wins"]
[SourceTitle "playchess.com"]
[Source "ChessBase"]
[SourceQuality "1"]
[TimeControl "180+2"]

1. e4 {[%emt 0:00:00]} c5 {[%emt 0:00:00]} 2. Nf3 {[%emt 0:00:00]} d6 {[%emt 0:
00:00]} 3. d4 {[%emt 0:00:00]} cxd4 4. Nxd4 {[%emt 0:00:01]} Nf6 {[%emt 0:00:
01]} 5. Nc3 {[%emt 0:00:00]} a6 {[%emt 0:00:01]} 6. Be3 {[%emt 0:00:01]} Ng4 {
[%emt 0:00:01]} 7. Bg5 {[%emt 0:00:01]} h6 {[%emt 0:00:01]} 8. Bc1 {[%emt 0:00:
00]} Nc6 {[%emt 0:00:02]} 9. Nxc6 {[%emt 0:00:09]} bxc6 {[%emt 0:00:01]} 10.
Be2 {[%emt 0:00:00]} Nf6 {[%emt 0:00:02]} 11. O-O {[%emt 0:00:05]} e6 {[%emt 0:
00:08]} 12. Bd3 {[%emt 0:00:16]} Be7 {[%emt 0:00:04]} 13. b3 {[%emt 0:00:08]}
O-O {[%emt 0:00:03]} 14. Bb2 {[%emt 0:00:02]} e5 {[%emt 0:00:08]} 15. Na4 {
[%emt 0:00:10]} Re8 {[%emt 0:00:26]} 16. c4 {[%emt 0:00:01]} Bf8 {[%emt 0:00:
03]} 17. Re1 {[%emt 0:00:08]} c5 {[%emt 0:00:08]} 18. Nc3 {[%emt 0:00:05]} Bg4
{[%emt 0:00:05]} 19. Be2 {[%emt 0:00:01]} Bd7 {[%emt 0:00:05]} 20. Qd3 {
[%emt 0:00:06]} Bc6 {[%emt 0:00:04]} 21. Bf1 {[%emt 0:00:30]} Nh5 {[%emt 0:00:
07]} 22. g3 {[%emt 0:00:02]} g6 {[%emt 0:00:03]} 23. Rad1 {[%emt 0:00:07]} Ng7
{[%emt 0:00:03]} 24. Bc1 {[%emt 0:00:10]} Ne6 {[%emt 0:00:02]} 25. Nd5 {
[%emt 0:00:14]} Nd4 {[%emt 0:00:06]} 26. Bb2 {[%emt 0:00:18]} Bg7 {[%emt 0:00:
11]} 27. Bg2 {[%emt 0:00:07]} a5 {[%emt 0:00:04]} 28. Bxd4 {[%emt 0:00:30]}
exd4 {[%emt 0:00:03]} 29. a4 {[%emt 0:00:26]} Rb8 {[%emt 0:00:04]} 30. Rb1 {
[%emt 0:00:09]} Qd7 {[%emt 0:00:04]} 31. Bf3 {[%emt 0:00:02]} Rb7 {[%emt 0:00:
06]} 32. Bd1 {[%emt 0:00:00]} Reb8 {[%emt 0:00:04]} 33. Bc2 {[%emt 0:00:01]}
Rf8 {[%emt 0:00:05]} 34. Re2 {[%emt 0:00:03]} Rbb8 {[%emt 0:00:05]} 35. Rbe1 {
[%emt 0:00:01]} Rfe8 {[%emt 0:00:02]} 36. Qd2 {[%emt 0:00:02]} Qd8 {[%emt 0:00:
03]} 37. Qd3 {[%emt 0:00:06]} Bd7 {[%emt 0:00:02]} 38. Kg2 {[%emt 0:00:02]} Qc8
{[%emt 0:00:02]} 39. f3 {[%emt 0:00:07]} Bh3+ 40. Kg1 Be6 {[%emt 0:00:11]} 41.
Nf4 {[%emt 0:00:00]} Bd7 {[%emt 0:00:01]} 42. Nd5 {[%emt 0:00:02]} Be5 {
[%emt 0:00:02]} 43. Rf2 {[%emt 0:00:03]} Bg7 {[%emt 0:00:05]} 44. Ree2 {
[%emt 0:00:02]} h5 45. Qd2 Kh7 {[%emt 0:00:09]} 46. Qxa5 {[%emt 0:00:05]} d3 {
[%emt 0:00:12]} 47. Bxd3 {[%emt 0:00:00]} Bd4 {[%emt 0:00:04]} 48. Bc2 {
[%emt 0:00:03]} Bc6 {[%emt 0:00:03]} 49. Kg2 {[%emt 0:00:01]} Bxd5 {[%emt 0:00:
02]} 50. exd5 {[%emt 0:00:03]} Bxf2 {[%emt 0:00:02]} 51. Rxf2 {[%emt 0:00:02]}
Qd8 52. Qc3 Qe7 {[%emt 0:00:06]} 53. a5 {[%emt 0:00:02]} Qe3 {[%emt 0:00:01]}
54. Bd3 {[%emt 0:00:01]} Qe1 {[%emt 0:00:03]} 55. Qxe1 {[%emt 0:00:10]} Rxe1 {
[%emt 0:00:01]} 56. Ra2 {[%emt 0:00:00]} Ra8 {[%emt 0:00:05]} 57. Kf2 {[%emt 0:
00:02]} Re7 {[%emt 0:00:02]} 0-1

[Event "GER-ch Blitz 2019"]
[Site "Magdeburg"]
[Date "2019.05.25"]
[Round "26.15"]
[White "Baskin, Robert"]
[Black "Buhmann, Rainer"]
[Result "1/2-1/2"]
[ECO "A45"]
[WhiteElo "2398"]
[BlackElo "2573"]
[Annotator "ChessBase"]
[PlyCount "105"]
[EventDate "2019.05.25"]
[EventType "tourn"]
[EventCountry "GER"]
[Tiebreak "Number of wins+Number of black wins"]
[SourceTitle "playchess.com"]
[Source "ChessBase"]
[SourceQuality "1"]
[TimeControl "180+2"]

1. d4 {[%emt 0:00:00]} Nf6 {[%emt 0:00:00]} 2. Bf4 {[%emt 0:00:00]} e6 {
[%emt 0:00:02]} 3. e3 {[%emt 0:00:01]} d5 {[%emt 0:00:03]} 4. Nd2 {[%emt 0:00:
02]} c5 {[%emt 0:00:03]} 5. c3 {[%emt 0:00:01]} Nc6 {[%emt 0:00:01]} 6. Ngf3 {
[%emt 0:00:01]} cxd4 {[%emt 0:00:02]} 7. exd4 {[%emt 0:00:01]} Nh5 {[%emt 0:00:
01]} 8. Be3 {[%emt 0:00:01]} Bd6 {[%emt 0:00:04]} 9. Ne5 {[%emt 0:00:01]} g6 {
[%emt 0:00:01]} 10. g4 {[%emt 0:00:02]} Ng7 {[%emt 0:00:02]} 11. h4 {[%emt 0:
00:01]} Nxe5 {[%emt 0:00:11]} 12. dxe5 {[%emt 0:00:01]} Bxe5 {[%emt 0:00:02]}
13. h5 {[%emt 0:00:01]} O-O {[%emt 0:00:12]} 14. Nf3 {[%emt 0:00:02]} Bf6 {
[%emt 0:00:05]} 15. Qd2 {[%emt 0:00:00]} d4 {[%emt 0:00:06]} 16. cxd4 {[%emt 0:
00:05]} Bd7 {[%emt 0:00:13]} 17. hxg6 {[%emt 0:00:05]} fxg6 {[%emt 0:00:03]}
18. Rh3 {[%emt 0:00:06]} Bc6 {[%emt 0:00:26]} 19. Be2 {[%emt 0:00:05]} Rc8 {
[%emt 0:00:05]} 20. Ne5 {[%emt 0:00:14]} Bd5 {[%emt 0:00:15]} 21. a3 {[%emt 0:
00:35]} Qc7 {[%emt 0:00:13]} 22. Rc1 {[%emt 0:00:07]} Qe7 {[%emt 0:00:17]} 23.
Rxc8 {[%emt 0:00:26]} Rxc8 {[%emt 0:00:01]} 24. Bd3 {[%emt 0:00:07]} Bxe5 {
[%emt 0:00:35]} 25. dxe5 {[%emt 0:00:01]} Qc7 {[%emt 0:00:08]} 26. Bd4 {
[%emt 0:00:38]} Qc1+ 27. Qxc1 Rxc1+ {[%emt 0:00:13]} 28. Kd2 {[%emt 0:00:12]}
Rg1 {[%emt 0:00:03]} 29. f3 {[%emt 0:00:02]} Rg2+ {[%emt 0:00:02]} 30. Ke3 {
[%emt 0:00:02]} b6 {[%emt 0:00:11]} 31. Rh1 {[%emt 0:00:04]} h5 {[%emt 0:00:05]
} 32. gxh5 {[%emt 0:00:05]} gxh5 {[%emt 0:00:02]} 33. Rc1 {[%emt 0:00:04]} Nf5+
{[%emt 0:00:03]} 34. Bxf5 {[%emt 0:00:04]} exf5 {[%emt 0:00:00]} 35. Kf4 {
[%emt 0:00:10]} Rd2 {[%emt 0:00:08]} 36. Rc8+ {[%emt 0:00:03]} Kf7 {[%emt 0:00:
00]} 37. Bc3 {[%emt 0:00:08]} Rd3 {[%emt 0:00:01]} 38. Kxf5 {[%emt 0:00:05]}
Rxf3+ {[%emt 0:00:01]} 39. Kg5 {[%emt 0:00:01]} Rg3+ {[%emt 0:00:08]} 40. Kxh5
{[%emt 0:00:05]} Ke6 {[%emt 0:00:04]} 41. Re8+ {[%emt 0:00:05]} Kd7 42. Rf8 {
[%emt 0:00:02]} a5 {[%emt 0:00:04]} 43. Rf6 {[%emt 0:00:01]} Be6 {[%emt 0:00:
00]} 44. Kh4 {[%emt 0:00:06]} Rg4+ {[%emt 0:00:01]} 45. Kh5 {[%emt 0:00:01]}
Rg3 {[%emt 0:00:01]} 46. Kh6 {[%emt 0:00:05]} Ke7 {[%emt 0:00:02]} 47. Rg6 {
[%emt 0:00:03]} Rxg6+ {[%emt 0:00:02]} 48. Kxg6 {[%emt 0:00:00]} a4 {[%emt 0:
00:01]} 49. Kg5 {[%emt 0:00:07]} b5 {[%emt 0:00:02]} 50. Kf4 {[%emt 0:00:00]}
Bc4 {[%emt 0:00:00]} 51. Ke4 {[%emt 0:00:03]} Ke6 {[%emt 0:00:01]} 52. Kd4 {
[%emt 0:00:00]} Be2 {[%emt 0:00:01]} 53. Ke4 {Kxe5+} 1/2-1/2

[Event "GER-ch Blitz 2019"]
[Site "Magdeburg"]
[Date "2019.05.25"]
[Round "27.1"]
[White "Gustafsson, Jan"]
[Black "Frischmann, Rick"]
[Result "0-1"]
[ECO "A04"]
[WhiteElo "2639"]
[BlackElo "2320"]
[Annotator "ChessBase"]
[PlyCount "130"]
[EventDate "2019.05.25"]
[EventType "tourn"]
[EventCountry "GER"]
[Tiebreak "Number of wins+Number of black wins"]
[SourceTitle "playchess.com"]
[Source "ChessBase"]
[SourceQuality "1"]
[TimeControl "180+2"]

1. Nf3 {[%emt 0:00:00]} Nc6 {[%emt 0:00:00]} 2. d4 {[%emt 0:00:00]} d5 {
[%emt 0:00:00]} 3. e3 {[%emt 0:00:02]} Bg4 {[%emt 0:00:00]} 4. Be2 {[%emt 0:00:
01]} Nf6 {[%emt 0:00:02]} 5. O-O {[%emt 0:00:02]} Bxf3 {[%emt 0:00:01]} 6. Bxf3
{[%emt 0:00:01]} e5 {[%emt 0:00:01]} 7. c4 {[%emt 0:00:03]} exd4 {[%emt 0:00:
15]} 8. exd4 {[%emt 0:00:04]} Be7 {[%emt 0:00:03]} 9. cxd5 {[%emt 0:00:05]}
Nxd5 {[%emt 0:00:13]} 10. Nc3 {[%emt 0:00:01]} Nb6 {[%emt 0:00:15]} 11. Bxc6+ {
[%emt 0:00:26]} bxc6 {[%emt 0:00:01]} 12. Qg4 {[%emt 0:00:07]} O-O {[%emt 0:00:
06]} 13. Bh6 {[%emt 0:00:01]} Bf6 {[%emt 0:00:01]} 14. Rad1 {[%emt 0:00:02]}
Nd5 {[%emt 0:00:12]} 15. Ne4 {[%emt 0:00:04]} Kh8 {[%emt 0:00:01]} 16. Bc1 {
[%emt 0:00:04]} Re8 {[%emt 0:00:04]} 17. Rd3 {[%emt 0:00:17]} Nb4 {[%emt 0:00:
09]} 18. Rh3 {[%emt 0:00:18]} Kg8 {[%emt 0:01:02]} 19. Qf5 {[%emt 0:00:11]}
Qxd4 {[%emt 0:00:36]} 20. Qxh7+ {[%emt 0:00:11]} Kf8 {[%emt 0:00:00]} 21. Re1 {
[%emt 0:00:26]} Nd3 {[%emt 0:00:26]} 22. Be3 {[%emt 0:00:38]} Qxe4 {[%emt 0:00:
04]} 23. Bc5+ {[%emt 0:00:05]} Nxc5 {[%emt 0:00:01]} 24. Rxe4 {[%emt 0:00:02]}
Rxe4 {[%emt 0:00:04]} 25. g3 {[%emt 0:00:19]} Rd8 {[%emt 0:00:00]} 26. Qf5 {
[%emt 0:00:03]} Re5 {[%emt 0:00:02]} 27. Qc2 {[%emt 0:00:02]} Ke7 {[%emt 0:00:
05]} 28. b4 {[%emt 0:00:02]} Nd3 {[%emt 0:00:01]} 29. Qxc6 {[%emt 0:00:02]}
Re1+ {[%emt 0:00:04]} 30. Kg2 {[%emt 0:00:01]} Re2 {[%emt 0:00:01]} 31. Qxc7+ {
[%emt 0:00:07]} Rd7 {[%emt 0:00:00]} 32. Qc4 {[%emt 0:00:03]} Rxf2+ {[%emt 0:
00:01]} 33. Kh1 {[%emt 0:00:04]} Bd4 {[%emt 0:00:01]} 34. Qxd3 {[%emt 0:00:03]}
Bb6 {[%emt 0:00:02]} 35. Qe4+ {[%emt 0:00:05]} Kf6 {[%emt 0:00:02]} 36. Qe1 {
[%emt 0:00:03]} Rfd2 {[%emt 0:00:04]} 37. g4 {[%emt 0:00:01]} Rd1 {[%emt 0:00:
01]} 38. Rf3+ {[%emt 0:00:04]} Kg6 {[%emt 0:00:00]} 39. Qxd1 {[%emt 0:00:03]}
Rxd1+ {[%emt 0:00:01]} 40. Kg2 {[%emt 0:00:01]} Rd2+ {[%emt 0:00:00]} 41. Kg3 {
[%emt 0:00:01]} Rxa2 {[%emt 0:00:01]} 42. h4 {[%emt 0:00:01]} f6 {[%emt 0:00:
01]} 43. h5+ {[%emt 0:00:01]} Kf7 {[%emt 0:00:00]} 44. g5 {[%emt 0:00:01]} Bc7+
{[%emt 0:00:07]} 45. Kh3 {[%emt 0:00:08]} Rh2+ {[%emt 0:00:02]} 46. Kg4 {
[%emt 0:00:00]} Rg2+ {[%emt 0:00:01]} 47. Kh4 {[%emt 0:00:02]} Rxg5 {[%emt 0:
00:03]} 48. Rc3 {[%emt 0:00:01]} Bb6 {[%emt 0:00:04]} 49. Rc6 {[%emt 0:00:02]}
Kg8 {[%emt 0:00:01]} 50. h6 {[%emt 0:00:01]} Rg6 {[%emt 0:00:01]} 51. hxg7 {
[%emt 0:00:02]} Kxg7 {[%emt 0:00:01]} 52. Kh5 {[%emt 0:00:01]} Rg5+ {[%emt 0:
00:01]} 53. Kh4 {[%emt 0:00:01]} Rb5 {[%emt 0:00:01]} 54. Rc4 {[%emt 0:00:01]}
Kg6 {[%emt 0:00:00]} 55. Kg4 {[%emt 0:00:01]} f5+ {[%emt 0:00:01]} 56. Kf3 {
[%emt 0:00:01]} Kg5 {[%emt 0:00:05]} 57. Kg3 {[%emt 0:00:02]} Re5 {[%emt 0:00:
02]} 58. Kf3 {[%emt 0:00:01]} Re3+ {[%emt 0:00:01]} 59. Kg2 {[%emt 0:00:01]} f4
{[%emt 0:00:02]} 60. Rc8 {[%emt 0:00:01]} Rb3 {[%emt 0:00:02]} 61. Rc4 {
[%emt 0:00:01]} Kg4 {[%emt 0:00:01]} 62. Kf1 {[%emt 0:00:01]} Rb2 {[%emt 0:00:
01]} 63. Ke1 {[%emt 0:00:02]} Kg3 {[%emt 0:00:01]} 64. Kd1 {[%emt 0:00:01]} f3
{[%emt 0:00:02]} 65. Kc1 {[%emt 0:00:01]} Rh2 {[%emt 0:00:03]} 0-1

[Event "GER-ch Blitz 2019"]
[Site "Magdeburg"]
[Date "2019.05.25"]
[Round "27.2"]
[White "Zuyev, Igor"]
[Black "Hirneise, Jens"]
[Result "1-0"]
[ECO "B23"]
[WhiteElo "2447"]
[BlackElo "2375"]
[Annotator "NA"]
[PlyCount "49"]
[EventDate "2019.05.25"]
[EventType "tourn"]
[EventCountry "GER"]
[Tiebreak "Number of wins+Number of black wins"]
[SourceTitle "playchess.com"]
[Source "ChessBase"]
[SourceQuality "1"]
[TimeControl "180+2"]

1. e4 {[%emt 0:00:00]} c5 {[%emt 0:00:00]} 2. Nc3 {[%emt 0:00:00]} Nc6 {
[%emt 0:00:00]} 3. f4 {[%emt 0:00:01]} g6 {[%emt 0:00:00]} 4. Nf3 {[%emt 0:00:
02]} Bg7 {[%emt 0:00:01]} 5. Bb5 {[%emt 0:00:11]} Nd4 {[%emt 0:00:01]} 6. O-O {
[%emt 0:00:02]} a6 {[%emt 0:00:01]} 7. Bc4 {[%emt 0:00:15]} d6 {[%emt 0:00:10]}
8. e5 {[%emt 0:00:06]} Be6 {[%emt 0:00:18]} 9. Bxe6 {[%emt 0:00:08]} Nxe6 {
[%emt 0:00:01]} 10. Ng5 {[%emt 0:00:07]} Qd7 {[%emt 0:00:24]} 11. d3 {[%emt 0:
00:07]} Nh6 {[%emt 0:00:15]} 12. exd6 {[%emt 0:00:08]} exd6 {[%emt 0:00:21]}
13. Nd5 {[%emt 0:00:06]} Rb8 {[%emt 0:00:28]} 14. f5 {[%emt 0:00:21]} gxf5 {
[%emt 0:00:32]} 15. Qh5 {[%emt 0:00:09]} O-O {[%emt 0:00:18]} 16. Nxh7 {
[%emt 0:00:10]} Kxh7 {[%emt 0:00:26]} 17. Bxh6 {[%emt 0:00:15]} Rh8 {[%emt 0:
00:05]} 18. Rf3 {[%emt 0:00:09]} Bd4+ {[%emt 0:00:10]} 19. Be3+ {[%emt 0:00:12]
} Kg8 {[%emt 0:00:03]} 20. Qxf5 {[%emt 0:00:07]} Bxe3+ {[%emt 0:00:02]} 21.
Rxe3 {[%emt 0:00:06]} Rh6 {[%emt 0:00:02]} 22. Rh3 {[%emt 0:00:06]} Rg6 {
[%emt 0:00:03]} 23. Nf6+ {[%emt 0:00:10]} Rxf6 {[%emt 0:00:02]} 24. Qxf6 {
[%emt 0:00:01]} Ng7 {[%emt 0:00:02]} 25. Rg3 1-0

[Event "GER-ch Blitz 2019"]
[Site "Magdeburg"]
[Date "2019.05.25"]
[Round "27.3"]
[White "Stern, Rene"]
[Black "Stein, Robert"]
[Result "1-0"]
[ECO "D45"]
[WhiteElo "2538"]
[BlackElo "2318"]
[Annotator "ChessBase"]
[PlyCount "81"]
[EventDate "2019.05.25"]
[EventType "tourn"]
[EventCountry "GER"]
[Tiebreak "Number of wins+Number of black wins"]
[SourceTitle "playchess.com"]
[Source "ChessBase"]
[SourceQuality "1"]
[TimeControl "180+2"]

1. Nf3 {[%emt 0:00:00]} Nf6 {[%emt 0:00:00]} 2. c4 {[%emt 0:00:00]} e6 {
[%emt 0:00:00]} 3. Nc3 {[%emt 0:00:01]} d5 {[%emt 0:00:00]} 4. d4 {[%emt 0:00:
00]} c6 {[%emt 0:00:03]} 5. e3 {[%emt 0:00:02]} Nbd7 {[%emt 0:00:02]} 6. Be2 {
[%emt 0:00:01]} dxc4 {[%emt 0:00:09]} 7. a4 {[%emt 0:00:01]} Bd6 {[%emt 0:00:
03]} 8. Nd2 {[%emt 0:00:01]} e5 {[%emt 0:00:05]} 9. Nxc4 {[%emt 0:00:02]} Bc7 {
[%emt 0:00:01]} 10. d5 {[%emt 0:00:13]} cxd5 {[%emt 0:00:03]} 11. Nxd5 {
[%emt 0:00:02]} Nxd5 {[%emt 0:00:04]} 12. Qxd5 {[%emt 0:00:01]} O-O {[%emt 0:
00:02]} 13. O-O {[%emt 0:00:04]} Nb6 {[%emt 0:00:13]} 14. Nxb6 {[%emt 0:00:09]}
axb6 {[%emt 0:00:01]} 15. Bf3 {[%emt 0:00:24]} Qxd5 {[%emt 0:00:26]} 16. Bxd5 {
[%emt 0:00:01]} Bd7 {[%emt 0:00:01]} 17. b3 {[%emt 0:00:09]} b5 {[%emt 0:00:01]
} 18. Bxb7 {[%emt 0:00:07]} Ra7 {[%emt 0:00:06]} 19. Rd1 {[%emt 0:00:01]} Be6 {
[%emt 0:00:09]} 20. Bd5 {[%emt 0:00:09]} bxa4 21. Bxe6 {[%emt 0:00:09]} fxe6 {
[%emt 0:00:11]} 22. bxa4 {[%emt 0:00:15]} Rfa8 {[%emt 0:00:35]} 23. Rd7 {
[%emt 0:00:03]} e4 {[%emt 0:00:01]} 24. g3 {[%emt 0:00:25]} Be5 {[%emt 0:00:02]
} 25. Rxa7 {[%emt 0:00:01]} Rxa7 {[%emt 0:00:01]} 26. Ra2 {[%emt 0:00:01]} Bc3
{[%emt 0:00:13]} 27. Kf1 {[%emt 0:00:04]} Kf7 {[%emt 0:00:08]} 28. Ke2 {
[%emt 0:00:00]} Kf6 {[%emt 0:00:06]} 29. Bd2 {[%emt 0:00:01]} Bxd2 30. Kxd2 {
[%emt 0:00:01]} Kf5 {[%emt 0:00:26]} 31. h3 {[%emt 0:00:02]} Ke5 {[%emt 0:00:
06]} 32. Kc3 {[%emt 0:00:04]} Kd5 {[%emt 0:00:05]} 33. a5 {[%emt 0:00:01]} Rc7+
{[%emt 0:00:07]} 34. Kb4 {[%emt 0:00:02]} Rb7+ {[%emt 0:00:01]} 35. Kc3 {
[%emt 0:00:02]} Kc5 {[%emt 0:00:10]} 36. a6 {[%emt 0:00:01]} Ra7 {[%emt 0:00:
01]} 37. Ra5+ {[%emt 0:00:03]} Kb6 {[%emt 0:00:06]} 38. Kb4 {[%emt 0:00:01]}
Kc6 {[%emt 0:00:08]} 39. Kc4 {[%emt 0:00:02]} Kb6 {[%emt 0:00:05]} 40. Ra2 {
[%emt 0:00:01]} Kc6 {[%emt 0:00:06]} 41. Kd4 {[%emt 0:00:02]} 1-0

[Event "GER-ch Blitz 2019"]
[Site "Magdeburg"]
[Date "2019.05.25"]
[Round "27.4"]
[White "Schmaltz, Roland"]
[Black "Schulz, Karsten"]
[Result "1/2-1/2"]
[ECO "B06"]
[WhiteElo "2461"]
[BlackElo "2227"]
[Annotator "ChessBase"]
[PlyCount "90"]
[EventDate "2019.05.25"]
[EventType "tourn"]
[EventCountry "GER"]
[Tiebreak "Number of wins+Number of black wins"]
[SourceTitle "playchess.com"]
[Source "ChessBase"]
[SourceQuality "1"]
[TimeControl "180+2"]

1. e4 {[%emt 0:00:00]} g6 {[%emt 0:00:00]} 2. d4 {[%emt 0:00:01]} Bg7 3. Nc3 d6
{[%emt 0:00:00]} 4. Be3 {[%emt 0:00:01]} a6 {[%emt 0:00:01]} 5. Nf3 {[%emt 0:
00:06]} b5 {[%emt 0:00:09]} 6. Bd3 {[%emt 0:00:02]} Nd7 {[%emt 0:00:02]} 7. a4
{[%emt 0:00:07]} b4 {[%emt 0:00:03]} 8. Ne2 {[%emt 0:00:01]} c5 {[%emt 0:00:03]
} 9. c3 {[%emt 0:00:07]} bxc3 {[%emt 0:00:03]} 10. bxc3 {[%emt 0:00:00]} Qc7 {
[%emt 0:00:07]} 11. O-O {[%emt 0:00:07]} Ngf6 {[%emt 0:00:03]} 12. h3 {[%emt 0:
00:02]} O-O {[%emt 0:00:01]} 13. a5 {[%emt 0:00:05]} Bb7 {[%emt 0:00:07]} 14.
Ng3 {[%emt 0:00:02]} d5 {[%emt 0:00:35]} 15. e5 {[%emt 0:00:08]} Ne4 {[%emt 0:
00:01]} 16. Ne2 {[%emt 0:00:15]} f5 {[%emt 0:00:18]} 17. exf6 {[%emt 0:00:03]}
exf6 {[%emt 0:00:05]} 18. Bf4 {[%emt 0:00:08]} Qc6 {[%emt 0:00:09]} 19. dxc5 {
[%emt 0:00:19]} Ndxc5 {[%emt 0:00:06]} 20. Nfd4 {[%emt 0:00:02]} Qd7 {[%emt 0:
00:02]} 21. Bc2 {[%emt 0:00:06]} Rac8 {[%emt 0:00:03]} 22. f3 {[%emt 0:00:07]}
Nd6 {[%emt 0:00:04]} 23. Bxd6 {[%emt 0:00:08]} Qxd6 {[%emt 0:00:01]} 24. Rb1 {
[%emt 0:00:01]} Ba8 {[%emt 0:00:07]} 25. Rb6 {[%emt 0:00:04]} Qd7 {[%emt 0:00:
05]} 26. Qd2 {[%emt 0:00:03]} Rfe8 {[%emt 0:00:13]} 27. h4 {[%emt 0:00:04]} Ne6
{[%emt 0:00:09]} 28. Rxa6 {[%emt 0:00:26]} Nxd4 {[%emt 0:00:02]} 29. Nxd4 {
[%emt 0:00:01]} Qc7 {[%emt 0:00:01]} 30. Ba4 {[%emt 0:00:09]} Re7 {[%emt 0:00:
17]} 31. Nc6 {[%emt 0:00:04]} Bxc6 {[%emt 0:00:12]} 32. Bxc6 {[%emt 0:00:01]}
Kh8 {[%emt 0:00:03]} 33. Qxd5 {[%emt 0:00:12]} f5 {[%emt 0:00:01]} 34. c4 {
[%emt 0:00:05]} Qf4 {[%emt 0:00:10]} 35. Rd1 {[%emt 0:00:15]} Be5 {[%emt 0:00:
07]} 36. Qc5 {[%emt 0:00:13]} Qh2+ 37. Kf1 Qh1+ {[%emt 0:00:25]} 38. Qg1 {
[%emt 0:00:02]} Qxh4 {[%emt 0:00:01]} 39. Bd5 {[%emt 0:00:04]} Rce8 {[%emt 0:
00:06]} 40. Qf2 {[%emt 0:00:17]} Qh1+ {[%emt 0:00:03]} 41. Qg1 {[%emt 0:00:01]}
Qh4 {[%emt 0:00:02]} 42. Qf2 {[%emt 0:00:00]} Bg3 {[%emt 0:00:09]} 43. Qb2+ {
[%emt 0:00:04]} Be5 {[%emt 0:00:05]} 44. Qf2 {[%emt 0:00:02]} Bg3 {[%emt 0:00:
02]} 45. Qb2+ {[%emt 0:00:01]} Be5 {[%emt 0:00:01]} 1/2-1/2